bitfinex-derivatives/quotes_SOLF0:USTF0_20241222
["timestamp","ask_amount","ask_price","bid_price","bid_amount"]
[1734827397086,4.7046,182.18,182.1,2.7472]
[1734827397394,3.54,182.29,182.1,30.02342861]
[1734827397589,6.9249,182.27,182.15,30.02342861]
[1734827397783,6.9249,182.27,182.16,3.54]
[1734827397986,2.745,182.25,182.19,2.7458]
[1734827398186,6.9249,182.27,182.16,3.54]
[1734827398591,2.7449,182.26,182.2,2.7457]
[1734827398788,6.9249,182.27,182.16,3.54]
[1734827399084,2.7448,182.26,182.2,2.7457]
[1734827399286,2.7448,182.26,182.16,3.54]
[1734827399688,6.9249,182.27,182.19,2.7458]
[1734827400289,6.9249,182.27,182.17,59.46424335]
[1734827400495,6.9249,182.27,182.18,73.08245122]
[1734827400801,2.7452,182.24,182.18,73.08245122]
[1734827401099,6.9249,182.27,182.19,93.41871557]
[1734827401495,10.4649,182.27,182.19,93.41871557]
[1734827401793,10.4649,182.27,182.2,13.61820787]
[1734827402498,2.7452,182.24,182.17,59.46424335]
[1734827402897,10.4649,182.27,182.17,59.46424335]
[1734827403093,2.7448,182.26,182.2,2.7457]
[1734827403904,2.7448,182.26,182.17,15.08230906]
[1734827404102,2.7448,182.26,182.19,2.7458]
[1734827404401,2.7449,182.25,182.19,2.7458]
[1734827404593,10.4649,182.27,182.18,74.54655241]
[1734827404790,10.4649,182.27,182.2,2.7456]
[1734827405199,10.4649,182.27,182.19,3.54]
[1734827405394,16.49,182.37,182.19,3.54]
[1734827405604,1.00842524,182.36,182.2,30.02342861]
[1734827405901,2.7439,182.32,182.24,2.745]
[1734827406093,2.7439,182.32,182.2,30.02342861]
[1734827406605,5.8081,182.35,182.2,30.02342861]
[1734827406804,2.7438,182.33,182.2,30.02342861]
[1734827407005,2.7438,182.33,182.22,59.46424335]
[1734827407398,2.7438,182.33,182.26,2.7447]
[1734827408193,2.7438,182.33,182.25,3.54]
[1734827408399,2.2681,182.35,182.25,3.54]
[1734827408400,2.7436,182.34,182.27,2.7445]
[1734827408709,2.7436,182.34,182.25,3.54]
[1734827408901,2.2681,182.35,182.25,3.54]
[1734827409299,2.7446,182.28,182.23,59.46424335]
[1734827409500,3.54,182.33,182.23,59.46424335]
[1734827409697,20.03,182.33,182.23,59.46424335]
[1734827409897,2.7451,182.24,182.23,44.85854335]
[1734827410096,2.7451,182.24,182.2,22.62346359]
[1734827410305,3.54,182.26,182.17,44.85854335]
[1734827410900,10.8688086,182.35,182.17,44.85854335]
[1734827411106,22.8454518,182.33,182.15,3.54]
[1734827411304,8.6007086,182.32,182.15,3.54]
[1734827411504,2.7447,182.27,182.15,3.54]
[1734827411705,2.7447,182.27,182.16,2.2376]
[1734827412407,2.7447,182.27,182.2,2.7456]
[1734827412808,12.16000622,182.34,182.16,2.2376]
[1734827413107,1.0083359,182.33,182.16,5.7776]
[1734827413306,26.11834212,182.33,182.16,5.7776]
[1734827413498,1.0083359,182.32,182.16,8.5239]
[1734827413808,25.11000622,182.33,182.16,5.7776]
[1734827414010,2.7452,182.23,182.16,8.5239]
[1734827414203,2.7452,182.23,182.16,6.2863]
[1734827414899,20.03,182.27,182.13,2.7466]
[1734827415108,32.11761349,182.26,182.11,2.2376]
[1734827415304,2.7463,182.17,182.11,2.2376]
[1734827415507,3.54,182.21,182.1,229.31768751]
[1734827415904,2.7464,182.16,182.1,229.31768751]
[1734827416107,3.54,182.21,182.1,229.31768751]
[1734827416305,20.03,182.21,182.1,229.31768751]
[1734827416613,16.49,182.19,182.04,36.31152861]
[1734827416903,2.2307,182.18,182.04,33.56342861]
[1734827418712,2.7462,182.17,182.04,33.56342861]
[1734827419411,2.7462,182.17,182.07,2.7475]
[1734827419607,2.7464,182.16,182.04,33.56342861]
[1734827420002,2.2307,182.18,182.04,33.56342861]
[1734827420209,2.7467,182.14,182.04,33.56342861]
[1734827420411,2.2307,182.18,182.04,33.56342861]
[1734827420707,2.2307,182.18,182.07,2.7475]
[1734827420915,2.2307,182.18,182.04,33.56342861]
[1734827421106,22.8454518,182.24,182.08,30.02342861]
[1734827421408,25.2241518,182.24,182.12,30.02342861]
[1734827421609,25.2241518,182.24,182.13,2.2936]
[1734827421912,22.8454518,182.24,182.19,2.7458]
[1734827422114,2.3105,182.26,182.19,2.7458]
[1734827422308,3.54,182.29,182.19,3.54]
[1734827425010,2.745,182.25,182.2,2.7456]
[1734827425211,3.54,182.29,182.2,2.7456]
[1734827425617,2.7449,182.26,182.2,2.7456]
[1734827427010,3.54,182.29,182.19,3.54]
[1734827427214,57.08,182.38,182.19,3.54]
[1734827427421,8.2393,182.34,182.19,3.54]
[1734827427613,2.7439,182.33,182.19,3.54]
[1734827427813,25.1610518,182.39,182.22,30.02342861]
[1734827428018,25.1610518,182.39,182.25,29.72263057]
[1734827428215,2.3156,182.39,182.26,5.8269]
[1734827428414,25.0751518,182.4,182.26,5.8269]
[1734827428716,2.743,182.38,182.26,5.8269]
[1734827429519,2.743,182.38,182.32,2.7438]
[1734827429720,2.743,182.38,182.32,6.2038]
[1734827430417,5.7756,182.43,182.32,3.46]
[1734827430617,5.7756,182.43,182.27,3.44]
[1734827431308,2.7426,182.41,182.27,3.44]
[1734827431512,2.7426,182.41,182.3,29.72263057]
[1734827431711,2.7426,182.41,182.31,2.4194]
[1734827431917,2.7426,182.41,182.32,3.44]
[1734827432117,2.7426,182.41,182.32,5.673]
[1734827432310,2.3156,182.43,182.33,2.7436]
[1734827432510,2.3156,182.43,182.32,5.673]
[1734827433114,2.7427,182.4,182.33,2.7436]
[1734827433315,2.7427,182.4,182.32,5.673]
[1734827433516,3.44,182.42,182.32,5.673]
[1734827433815,2.7429,182.39,182.33,2.7437]
[1734827434022,2.3156,182.43,182.32,5.673]
[1734827434818,2.3156,182.43,182.32,3.44]
[1734827435215,2.3156,182.43,182.35,2.7434]
[1734827435417,2.3156,182.43,182.32,3.44]
[1734827435722,2.7425,182.42,182.36,2.7433]
[1734827436425,2.7425,182.42,182.32,3.44]
[1734827436426,2.7427,182.41,182.35,2.7434]
[1734827437127,2.3156,182.43,182.35,2.7434]
[1734827437428,2.3156,182.43,182.32,3.44]
[1734827437429,2.7429,182.39,182.33,2.7436]
[1734827437626,2.3156,182.43,182.32,3.44]
[1734827438327,2.3156,182.43,182.3,29.72263057]
[1734827438524,2.3156,182.43,182.32,3.44]
[1734827439028,2.7432,182.37,182.32,3.44]
[1734827440120,2.7432,182.37,182.32,6.1838]
[1734827441227,2.743,182.38,182.33,2.7436]
[1734827441426,2.3156,182.43,182.32,3.44]
[1734827441626,5.7556,182.43,182.32,3.44]
[1734827441827,2.7428,182.39,182.33,2.7437]
[1734827442028,5.7556,182.43,182.33,2.7437]
[1734827442923,2.7427,182.4,182.33,2.7437]
[1734827443329,2.7427,182.4,182.34,2.7436]
[1734827445331,3.44,182.44,182.32,3.44]
[1734827445332,2.7421,182.44,182.38,2.7429]
[1734827445535,2.3533,182.45,182.38,2.7429]
[1734827446524,2.7423,182.43,182.38,2.7429]
[1734827446726,2.3533,182.45,182.38,2.7429]
[1734827447331,5.0953,182.45,182.39,2.7428]
[1734827447532,2.3748,182.46,182.39,2.7428]
[1734827448430,2.7421,182.44,182.39,2.7428]
[1734827448632,22.8454518,182.59,182.37,3.44]
[1734827448633,16.49,182.57,182.37,3.44]
[1734827448831,1.00751836,182.56,182.48,2.7414]
[1734827449028,6.9416,182.58,182.48,2.7414]
[1734827449437,2.7404,182.55,182.47,3.44]
[1734827449634,2.7404,182.55,182.49,2.7413]
[1734827449935,2.7403,182.57,182.47,3.44]
[1734827450136,2.7403,182.57,182.5,2.7411]
[1734827450336,6.9416,182.58,182.47,3.44]
[1734827450739,1.00709735,182.57,182.38,10.2726]
[1734827450932,2.741,182.52,182.38,10.2726]
[1734827451231,3.44,182.51,182.41,2.7425]
[1734827451540,2.2627,182.5,182.41,2.7425]
[1734827452435,2.7416,182.48,182.41,2.7425]
[1734827452637,2.2627,182.5,182.38,10.2726]
[1734827453034,5.0039,182.5,182.43,2.7421]
[1734827453737,2.741,182.52,182.44,2.742]
[1734827454039,3.44,182.57,182.43,3.44]
[1734827454436,3.44,182.57,182.47,2.7415]
[1734827454836,3.44,182.57,182.43,3.44]
[1734827455744,2.7406,182.54,182.47,2.7416]
[1734827455935,2.7406,182.54,182.43,3.44]
[1734827456437,2.7406,182.54,182.47,2.7415]
[1734827457037,2.7409,182.52,182.46,2.7417]
[1734827457333,3.38,182.51,182.43,3.44]
[1734827457837,2.7413,182.5,182.44,2.7421]
[1734827458142,3.38,182.51,182.38,2.2052]
[1734827458342,7.0147,182.49,182.38,2.2052]
[1734827458543,2.7419,182.46,182.39,2.7427]
[1734827458743,7.0147,182.49,182.38,2.2052]
[1734827458943,7.0147,182.49,182.36,33.10263057]
[1734827459236,7.0147,182.49,182.38,2.743]
[1734827459237,2.7421,182.44,182.38,2.743]
[1734827459742,7.0147,182.49,182.32,29.72263057]
[1734827459743,3.38,182.45,182.32,29.72263057]
[1734827460237,2.7421,182.44,182.36,2.7432]
[1734827460544,3.38,182.44,182.32,29.72263057]
[1734827461042,6.1221,182.44,182.37,2.743]
[1734827461644,2.7422,182.43,182.37,2.743]
[1734827462245,2.7424,182.42,182.36,2.7433]
[1734827462540,3.38,182.44,182.37,2.743]
[1734827462744,3.38,182.44,182.34,3.38]
[1734827462942,3.38,182.45,182.35,2.3874]
[1734827463443,3.38,182.45,182.32,29.72263057]
[1734827463739,2.7435,182.35,182.3,2.7442]
[1734827463944,23.5047,182.49,182.28,32.10993057]
[1734827464146,3.38,182.48,182.32,29.72263057]
[1734827464342,3.38,182.48,182.32,33.10263057]
[1734827464846,3.38,182.48,182.35,2.7434]
[1734827465444,2.7425,182.42,182.35,2.7434]
[1734827465644,6.1225,182.42,182.35,2.7434]
[1734827466541,6.1225,182.42,182.28,2.3873]
[1734827466542,3.38,182.42,182.29,3.38]
[1734827466943,19.87,182.42,182.26,60.67322771]
[1734827467246,19.69606267,182.41,182.26,60.67322771]
[1734827467447,2.7444,182.29,182.26,60.67322771]
[1734827467749,3.38,182.31,182.21,60.67322771]
[1734827467947,2.7451,182.24,182.21,60.67322771]
[1734827468150,3.38,182.25,182.21,60.67322771]
[1734827469241,2.7452,182.24,182.16,2.7463]
[1734827469445,3.38,182.25,182.16,2.7463]
[1734827469646,2.7451,182.24,182.17,2.7461]
[1734827470744,3.38,182.25,182.12,2.2342]
[1734827470943,3.38,182.25,182.08,3.38]
[1734827471542,2.746,182.19,182.11,2.747]
[1734827471746,3.38,182.18,182.08,3.38]
[1734827471952,3.38,182.18,182.07,2.2239]
[1734827472254,3.38,182.18,181.96,74.0257464]
[1734827472255,7.0376,182.17,182.02,31.98063057]
[1734827472448,7.0376,182.17,182.02,35.36063057]
[1734827472744,7.0376,182.17,182.02,33.10263057]
[1734827472944,7.0376,182.17,181.99,60.67322771]
[1734827473440,3.38,182.16,181.99,60.67322771]
[1734827473640,3.38,182.16,181.98,2.87369351]
[1734827473841,3.38,182.16,181.96,76.4563464]
[1734827474048,3.38,182.15,181.98,29.72263057]
[1734827474645,3.38,182.15,181.96,76.4563464]
[1734827474857,3.38,182.15,181.96,79.8363464]
[1734827475045,2.7478,182.06,181.96,82.5855464]
[1734827475246,3.38,182.06,181.96,79.8363464]
[1734827475553,3.38,182.06,181.96,2.4306]
[1734827475750,2.7481,182.04,181.96,5.1799]
[1734827476044,2.2006,182.05,181.96,2.4306]
[1734827476247,4.9486,182.05,181.98,2.749]
[1734827476443,2.2006,182.05,181.96,2.4306]
[1734827476844,2.7483,182.03,181.96,5.1799]
[1734827477040,2.2006,182.05,181.96,5.1799]
[1734827477352,2.2006,182.05,181.9,29.72263057]
[1734827477542,4.5274,182.04,181.9,2.7502]
[1734827477943,4.5274,182.04,181.87,3.38]
[1734827478151,3.38,182.03,181.87,3.38]
[1734827478451,2.7485,182.02,181.93,2.7497]
[1734827478643,2.7485,182.02,181.87,3.38]
[1734827478644,4.5274,182.04,181.87,3.38]
[1734827478847,5.6406,182.04,181.9,29.72263057]
[1734827479049,8.3887,182.04,181.94,2.7496]
[1734827479242,8.3887,182.04,181.94,3.38]
[1734827479453,5.6406,182.04,181.94,3.38]
[1734827479647,5.6406,182.04,181.94,6.1295]
[1734827480455,5.6406,182.04,181.94,3.38]
[1734827481248,2.7489,181.99,181.94,3.38]
[1734827481452,3.38,181.99,181.88,3.38]
[1734827481850,3.38,181.99,181.87,2.7505]
[1734827482154,3.38,181.99,181.84,6.742]
[1734827482155,3.38,181.99,181.84,10.122]
[1734827482350,2.7498,181.94,181.84,10.122]
[1734827482748,3.38,181.99,181.88,2.7505]
[1734827482943,3.38,182.0,181.86,29.72263057]
[1734827484758,2.2606,182.04,181.86,29.72263057]
[1734827484960,2.7486,182.02,181.96,2.7493]
[1734827485251,3.38,182.03,181.86,29.72263057]
[1734827485458,3.38,182.03,181.89,2.7504]
[1734827485757,3.38,182.03,181.86,29.72263057]
[1734827485959,3.38,182.02,181.86,29.72263057]
[1734827486151,2.2606,182.04,181.86,29.72263057]
[1734827486460,2.749,181.99,181.92,2.7499]
[1734827486656,2.2606,182.04,181.86,29.72263057]
[1734827486853,3.36,182.03,181.86,29.72263057]
[1734827487254,3.36,182.02,181.86,29.72263057]
[1734827487655,2.7492,181.98,181.92,2.7499]
[1734827488558,3.36,182.02,181.91,3.36]
[1734827488760,3.36,182.01,181.92,2.4266]
[1734827488950,2.2606,182.04,181.93,2.2028]
[1734827489161,3.36,182.03,181.93,2.2028]
[1734827489555,3.36,182.03,181.88,3.36]
[1734827490359,3.36,182.03,181.87,2.2028]
[1734827491260,19.85,182.03,181.87,4.9534]
[1734827491459,1.01010594,182.02,181.87,4.9534]
[1734827491755,2.2606,182.04,181.87,2.2028]
[1734827491960,2.749,181.99,181.93,2.7497]
[1734827492761,3.36,181.98,181.91,2.7499]
[1734827493157,6.109,181.98,181.91,2.7499]
[1734827494064,6.109,181.98,181.92,2.7499]
[1734827494364,3.36,181.98,181.87,2.2028]
[1734827494559,3.36,181.98,181.85,4.9979]
[1734827494765,3.36,181.98,181.84,2.2728]
[1734827494766,2.7501,181.91,181.84,2.2728]
[1734827494954,3.36,181.92,181.84,2.2728]
[1734827495558,8.0049,181.96,181.84,2.2728]
[1734827495762,8.0049,181.96,181.85,2.2682]
[1734827495962,2.7495,181.95,181.89,2.7504]
[1734827496663,2.7496,181.94,181.89,2.7504]
[1734827496863,8.0049,181.96,181.85,2.2682]
[1734827497270,2.7502,181.91,181.85,2.2682]
[1734827497468,8.0049,181.96,181.85,2.2682]
[1734827498065,29.72263057,181.95,181.79,2.3731]
[1734827498268,29.72263057,181.95,181.75,2.3368]
[1734827498269,17.50055589,181.94,181.75,2.3368]
[1734827498570,1.01055589,181.93,181.77,2.7521]
[1734827498965,3.36,181.92,181.77,3.36]
[1734827499165,3.36,181.92,181.78,29.72263057]
[1734827499571,2.7505,181.89,181.81,2.7516]
[1734827499768,3.36,181.92,181.79,3.36]
[1734827500166,2.7505,181.89,181.8,2.7517]
[1734827500365,3.36,181.92,181.79,3.36]
[1734827500867,2.7502,181.9,181.79,3.36]
[1734827501068,4.6449,181.96,181.79,3.36]
[1734827501269,3.36,181.95,181.79,3.36]
[1734827501469,2.7499,181.92,181.86,2.7508]
[1734827501866,2.7501,181.91,181.86,2.7508]
[1734827502477,2.7501,181.91,181.85,2.751]
[1734827502971,4.6449,181.96,181.79,3.36]
[1734827502972,3.36,181.92,181.79,3.36]
[1734827503176,4.6449,181.96,181.83,2.7512]
[1734827503378,3.36,181.95,181.79,3.36]
[1734827503877,2.7503,181.9,181.84,2.7511]
[1734827504783,3.36,181.91,181.79,3.36]
[1734827505683,1.09950522,181.9,181.79,3.36]
[1734827506178,29.72263057,182.08,181.81,29.72263057]
[1734827506378,4.6249,182.02,181.85,29.72263057]
[1734827506683,3.36,182.01,181.9,2.7502]
[1734827506987,2.7495,181.95,181.9,2.7502]
[1734827507180,3.36,182.01,181.86,3.36]
[1734827507882,2.7493,181.97,181.86,3.36]
[1734827508278,2.7493,181.97,181.92,2.7498]
[1734827508579,2.7488,182.0,181.86,3.36]
[1734827508779,3.36,182.01,181.87,3.36]
[1734827508982,1.09914266,181.96,181.92,2.7499]
[1734827509179,1.09914266,181.96,181.87,3.36]
[1734827509180,2.7498,181.94,181.87,3.36]
[1734827509382,2.7498,181.94,181.89,2.7504]
[1734827509785,2.7498,181.94,181.87,3.36]
[1734827509985,1.09914266,181.96,181.87,3.36]
[1734827510590,3.84844266,181.96,181.9,2.7501]
[1734827511287,3.84844266,181.96,181.87,3.36]
[1734827511288,1.09914266,181.96,181.87,3.36]
[1734827511786,2.7505,181.89,181.85,60.67322771]
[1734827511989,3.36,181.95,181.85,60.67322771]
[1734827512289,4.8407,181.94,181.85,60.67322771]
[1734827512588,2.7508,181.86,181.82,152.87845834]
[1734827512788,2.7508,181.86,181.81,60.67322771]
[1734827513084,3.36,181.89,181.81,60.67322771]
[1734827513683,2.7514,181.82,181.81,60.67322771]
[1734827513988,3.36,181.82,181.76,60.67322771]
[1734827514585,2.3557,181.81,181.76,60.67322771]
[1734827515383,2.3557,181.81,181.68,60.67322771]
[1734827515789,2.7523,181.77,181.68,63.42672771]
[1734827516091,3.36,181.76,181.68,63.42672771]
[1734827516489,3.36,181.76,181.68,2.7535]
[1734827516786,6.1123,181.76,181.68,2.7535]
[1734827517487,3.36,181.76,181.67,2.434]
[1734827517687,3.34,181.79,181.67,2.434]
[1734827517883,2.3557,181.81,181.67,2.434]
[1734827518088,3.34,181.83,181.69,29.72263057]
[1734827518286,8.5576,181.86,181.7,5.6941]
[1734827518483,6.0908,181.86,181.71,2.2825]
[1734827518687,3.34,181.86,181.71,2.2825]
[1734827518990,2.2728,181.91,181.73,29.72263057]
[1734827519193,5.6811,181.92,181.83,2.7512]
[1734827519386,2.7504,181.89,181.81,3.34]
[1734827519587,5.6811,181.92,181.81,3.34]
[1734827519792,2.7504,181.89,181.81,6.0916]
[1734827519989,5.6811,181.92,181.81,3.34]
[1734827520691,5.6811,181.92,181.82,2.3714]
[1734827521094,2.7507,181.88,181.82,2.3714]
[1734827521592,5.6811,181.92,181.82,2.3714]
[1734827522292,2.2728,181.95,181.82,2.3714]
[1734827522496,2.4429,181.97,181.82,2.3714]
[1734827522497,5.7829,181.97,181.82,2.3714]
[1734827522998,2.7496,181.95,181.86,2.7508]
[1734827523191,5.7829,181.97,181.86,2.7508]
[1734827523192,5.7829,181.97,181.86,3.34]
[1734827523394,2.4616,181.99,181.86,3.34]
[1734827523592,2.7492,181.97,181.92,2.7499]
[1734827523787,2.4648,182.03,181.92,3.34]
[1734827523992,2.3512,182.04,181.92,3.34]
[1734827524193,2.7483,182.03,181.98,2.749]
[1734827524394,3.34,182.07,181.93,4.6784]
[1734827524797,2.7489,182.0,181.93,10.768]
[1734827525001,1.09896148,181.99,181.93,10.768]
[1734827525897,1.09896148,181.99,181.93,8.0184]
[1734827526588,1.09896148,181.99,181.94,2.7496]
[1734827526793,1.09896148,181.99,181.88,3.34]
[1734827527101,3.34,181.98,181.88,3.34]
[1734827527303,3.34,181.98,181.87,3.34]
[1734827527596,8.1067,181.98,181.87,3.34]
[1734827527796,8.1067,181.98,181.86,2.3312]
[1734827528901,8.1067,181.98,181.83,3.34]
[1734827529102,2.7497,181.94,181.84,2.751]
[1734827529294,3.34,181.93,181.84,2.751]
[1734827529593,3.34,181.93,181.82,3.34]
[1734827530296,3.34,181.95,181.85,2.7509]
[1734827530496,3.34,181.95,181.82,3.34]
[1734827531094,2.75,181.92,181.85,2.7509]
[1734827531298,3.34,181.95,181.82,3.34]
[1734827532096,3.34,181.95,181.81,2.5112]
[1734827533002,49.55263057,181.95,181.77,3.34]
[1734827533194,1.01054487,181.94,181.77,3.34]
[1734827533700,2.5159,181.93,181.77,3.34]
[1734827533896,1.01059326,181.92,181.77,2.752]
[1734827534103,29.72263057,181.91,181.74,6.4339]
[1734827534302,4.35059326,181.9,181.74,4.7094]
[1734827534504,3.34,181.9,181.74,4.7094]
[1734827534705,4.8537,181.89,181.74,2.3092]
[1734827534906,2.7518,181.8,181.74,2.3092]
[1734827535303,3.34,181.82,181.69,4.1247]
[1734827535505,3.34,181.82,181.69,2.4002]
[1734827535697,2.5159,181.81,181.68,2.87846766]
[1734827536006,2.5159,181.81,181.67,2.2827]
[1734827536409,2.3851,181.8,181.64,3.34]
[1734827536807,2.3679,181.79,181.64,3.34]
[1734827537099,2.7524,181.76,181.68,2.7534]
[1734827537503,3.34,181.77,181.64,3.34]
[1734827537909,3.34,181.77,181.65,2.754]
[1734827538598,2.7529,181.73,181.65,2.754]
[1734827539101,3.34,181.77,181.63,3.34]
[1734827539305,2.3851,181.8,181.64,29.72263057]
[1734827539608,3.34,181.81,181.64,29.72263057]
[1734827539806,3.34,181.81,181.75,2.7524]
[1734827540800,3.34,181.81,181.62,2.4165]
[1734827541403,2.7531,181.71,181.65,2.754]
[1734827541802,29.72263057,181.83,181.63,3.34]
[1734827542008,3.34,181.82,181.7,2.7532]
[1734827542310,3.34,181.82,181.63,3.34]
[1734827543012,2.7528,181.73,181.67,2.7536]
[1734827543408,3.34,181.75,181.64,3.34]
[1734827543606,3.34,181.75,181.62,2.4165]
[1734827543806,3.34,181.75,181.62,5.7565]
[1734827544008,3.34,181.75,181.62,2.4165]
[1734827544308,4.7878,181.74,181.62,2.4165]
[1734827544509,2.7532,181.71,181.62,5.171]
[1734827544706,3.34,181.73,181.62,2.4165]
[1734827544909,3.34,181.74,181.62,2.4165]
[1734827545110,2.7533,181.7,181.63,2.7542]
[1734827545301,3.34,181.73,181.62,2.4165]
[1734827545908,2.7531,181.71,181.62,2.4165]
[1734827546313,3.46,181.77,181.62,2.4165]
[1734827546513,2.7527,181.74,181.68,2.7534]
[1734827547112,2.7527,181.74,181.69,2.7534]
[1734827547410,2.7525,181.76,181.66,3.46]
[1734827547615,7.1187,181.82,181.66,33.18263057]
[1734827547917,3.46,181.85,181.67,1.7674]
[1734827548116,2.7516,181.81,181.67,1.7674]
[1734827548312,3.46,181.85,181.71,2.7531]
[1734827548513,2.7516,181.82,181.72,5.782]
[1734827548708,3.46,181.85,181.72,5.782]
[1734827548911,29.72263057,181.88,181.77,2.7522]
[1734827549112,2.7513,181.83,181.73,2.4373]
[1734827549611,1.099989,181.82,181.73,2.4373]
[1734827551113,1.099989,181.82,181.79,2.7517]
[1734827551311,1.099989,181.82,181.73,2.4373]
[1734827551312,1.099989,181.82,181.77,3.46]
[1734827551524,57.22,181.97,181.77,3.46]
[1734827551708,2.7503,181.9,181.77,3.46]
[1734827551909,1.09956567,181.89,181.77,3.46]
[1734827553412,2.3603,181.88,181.77,3.46]
[1734827553615,2.7509,181.86,181.77,3.46]
[1734827553809,2.3603,181.88,181.77,3.46]
[1734827554011,2.3603,181.88,181.77,6.2121]
[1734827554211,2.3603,181.88,181.77,3.46]
[1734827554816,2.751,181.86,181.77,3.46]
[1734827555414,2.3603,181.88,181.77,3.46]
[1734827555612,1.09968658,181.87,181.77,3.46]
[1734827556117,1.09968658,181.87,181.82,2.7514]
[1734827556517,1.09968658,181.87,181.77,3.46]
[1734827556717,1.09968658,181.87,181.78,0.6611]
[1734827557424,1.09968658,181.87,181.84,2.7511]
[1734827557820,1.09968658,181.87,181.81,3.46]
[1734827558123,1.09968658,181.87,181.86,2.7508]
[1734827559123,0.43928658,181.87,181.86,6.2108]
[1734827559316,3.46,181.99,181.86,3.46]
[1734827559523,34.52743057,182.02,181.86,3.46]
[1734827559524,8.2648,182.02,181.86,3.46]
[1734827560125,37.98743057,182.02,181.82,4.8869]
[1734827560326,1.09884072,182.01,181.83,3.44]
[1734827561222,1.09884072,182.01,181.82,4.8869]
[1734827561223,17.58884072,182.01,181.82,4.8869]
[1734827561428,17.58884072,182.01,181.84,3.44]
[1734827561624,2.75,181.92,181.86,2.7507]
[1734827561923,3.44,181.95,181.84,3.44]
[1734827562526,3.44,181.95,181.83,2.7512]
[1734827562825,4.7656,181.94,181.82,5.821]
[1734827563323,3.44,181.99,181.82,5.821]
[1734827563725,8.4239,182.0,181.82,5.821]
[1734827564021,8.4239,182.0,181.84,29.72263057]
[1734827564421,1.09896148,181.99,181.84,29.72263057]
[1734827566019,3.84796148,181.99,181.84,29.72263057]
[1734827566825,3.84796148,181.99,181.94,2.7495]
[1734827567021,1.09896148,181.99,181.93,3.44]
[1734827567223,36.90783057,182.1,181.94,2.3974]
[1734827567425,10.6252,182.1,181.94,4.7144]
[1734827567726,2.7478,182.06,181.94,4.7144]
[1734827567925,1.09859928,182.05,181.94,4.7144]
[1734827568229,1.09859928,182.05,182.0,2.7486]
[1734827568635,1.09859928,182.05,181.99,3.44]
[1734827568931,5.8182,182.17,181.99,3.44]
[1734827569124,1.00935223,182.16,181.99,3.44]
[1734827569425,2.747,182.12,182.06,2.7477]
[1734827569824,1.09823732,182.11,182.06,2.7477]
[1734827570522,1.09823732,182.11,182.05,3.44]
[1734827571133,1.09823732,182.11,181.96,29.72263057]
[1734827571318,1.09823732,182.11,181.97,3.44]
[1734827571522,4.53823732,182.11,181.94,4.7144]
[1734827571725,4.53823732,182.11,181.95,3.44]
[1734827572122,2.748,182.05,181.99,2.7488]
[1734827572427,4.53823732,182.11,181.99,2.7488]
[1734827572632,4.53823732,182.11,181.95,3.44]
[1734827572829,2.7483,182.03,181.96,2.7492]
[1734827573027,2.7483,182.03,181.95,3.44]
[1734827573427,3.44,182.06,181.94,3.44]
[1734827573630,4.8131,182.05,181.94,3.44]
[1734827573832,2.7487,182.0,181.94,6.1895]